bitfinex/quotes_SOLUSD_20250525
["timestamp","ask_amount","ask_price","bid_price","bid_amount"]
[1748139526455,20.216415,170.3,170.15,20.216415]
[1748139526654,20.216415,170.3,170.17,20.216415]
[1748139526861,20.216415,170.24,170.19,20.216415]
[1748139527091,20.216415,170.24,170.2,35.16]
[1748139527270,20.216415,170.25,170.2,35.16]
[1748139527468,20.216415,170.26,170.21,259.92]
[1748139527858,20.216415,170.26,170.21,280.136415]
[1748139528057,20.216415,170.26,170.2,35.16]
[1748139528259,46.216415,170.27,170.21,20.216415]
[1748139528485,26.0,170.27,170.2,55.376415]
[1748139528682,26.0,170.27,170.13,49.84779614]
[1748139528683,20.216415,170.22,170.13,23.84779614]
[1748139528980,20.216415,170.19,170.14,55.376415]
[1748139529191,26.0,170.23,170.15,20.216415]
[1748139529192,20.216415,170.21,170.15,20.216415]
[1748139529358,20.216415,170.21,170.16,20.216415]
[1748139529575,20.216415,170.2,170.14,35.16]
[1748139529800,20.216415,170.17,170.14,35.16]
[1748139530003,20.216415,170.16,170.14,35.16]
[1748139530209,20.216415,170.16,170.13,23.84779614]
[1748139530378,20.216415,170.16,170.14,35.16]
[1748139530710,20.216415,170.17,170.14,35.16]
[1748139531285,20.216415,170.18,170.14,35.16]
[1748139531496,10.0,170.29,170.15,20.216415]
[1748139531703,20.216415,170.25,170.14,35.16]
[1748139531876,20.35857657,170.26,170.14,35.16]
[1748139532076,0.14216157,170.25,170.2,20.216415]
[1748139532395,20.216415,170.25,170.21,35.16]
[1748139532596,26.14216157,170.27,170.21,35.16]
[1748139532904,20.216415,170.28,170.22,20.216415]
[1748139533274,4.78222668,170.36,170.24,20.216415]
[1748139533480,20.216415,170.3,170.25,20.216415]
[1748139533906,20.216415,170.31,170.26,20.216415]
[1748139534088,26.0,170.3,170.27,35.16]
[1748139534287,16.86149819,170.39,170.27,55.376415]
[1748139534288,20.216415,170.33,170.27,55.376415]
[1748139534498,18.79181043,170.38,170.27,55.376415]
[1748139534499,0.14216157,170.38,170.31,20.216415]
[1748139534690,20.216415,170.38,170.33,20.216415]
[1748139534878,6.86149819,170.44,170.34,35.16]
[1748139535079,10.0,170.42,170.35,35.16]
[1748139535292,6.86149819,170.44,170.35,35.16]
[1748139535494,20.216415,170.42,170.35,35.16]
[1748139535697,20.216415,170.5,170.38,20.216415]
[1748139535698,20.216415,170.43,170.38,20.216415]
[1748139535891,20.216415,170.45,170.39,20.216415]
[1748139536510,0.14216157,170.45,170.4,35.16]
[1748139536688,20.216415,170.41,170.4,35.16]
[1748139537441,20.35857657,170.41,170.33,1.6526]
[1748139537736,20.216415,170.36,170.34,297.0]
[1748139538029,20.216415,170.36,170.34,77.58]
[1748139539121,0.14216157,170.4,170.34,35.16]
[1748139539307,46.216415,170.41,170.34,35.16]
[1748139539514,20.216415,170.41,170.34,35.16]
[1748139540211,6.86149819,170.5,170.4,20.216415]
[1748139540419,20.216415,170.46,170.41,55.376415]
[1748139540607,0.14216157,170.48,170.42,20.216415]
[1748139540812,20.216415,170.46,170.41,55.376415]
[1748139541227,0.14216157,170.54,170.44,20.216415]
[1748139541426,6.86149819,170.55,170.48,20.216415]
[1748139541632,20.216415,170.55,170.5,20.216415]
[1748139541826,2.90891674,170.61,170.51,55.376415]
[1748139542109,20.216415,170.59,170.53,20.216415]
[1748139542317,20.216415,170.58,170.53,20.216415]
[1748139542518,20.216415,170.58,170.52,20.216415]
[1748139542726,0.14216157,170.62,170.53,20.216415]
[1748139542927,20.216415,170.61,170.56,20.216415]
[1748139543132,20.216415,170.63,170.58,20.216415]
[1748139543409,20.216415,170.64,170.57,35.16]
[1748139543607,30.56089496,170.62,170.57,65.72089496]
[1748139545014,30.56089496,170.63,170.58,30.56089496]
[1748139545219,30.56089496,170.62,170.57,65.72089496]
[1748139545436,0.14216157,170.66,170.57,65.72089496]
[1748139545744,30.56089496,170.64,170.59,30.56089496]
[1748139545915,30.56089496,170.66,170.61,30.56089496]
[1748139546114,30.56089496,170.67,170.61,30.56089496]
[1748139546311,30.56089496,170.66,170.61,30.56089496]
[1748139546733,26.0,170.65,170.61,30.56089496]
[1748139546937,26.0,170.68,170.61,30.56089496]
[1748139547234,26.0,170.65,170.61,30.56089496]
[1748139547636,56.56089496,170.63,170.62,219.18]
[1748139547935,30.56089496,170.65,170.62,77.5]
[1748139548132,26.0,170.66,170.62,35.12]
[1748139548312,30.56089496,170.67,170.62,65.68089496]
[1748139548516,30.56089496,170.67,170.62,35.12]
[1748139548517,26.0,170.64,170.62,35.12]
[1748139548932,30.56089496,170.68,170.63,30.56089496]
[1748139549135,30.56089496,170.65,170.62,35.12]
[1748139549541,18.79181043,170.73,170.57,18.64964886]
[1748139549717,0.14216157,170.73,170.66,30.56089496]
[1748139550036,26.0,170.71,170.67,30.56089496]
[1748139550235,30.56089496,170.75,170.69,30.56089496]
[1748139550410,26.0,170.72,170.69,30.56089496]
[1748139550824,26.0,170.72,170.7,35.12]
[1748139551032,30.56089496,170.76,170.71,30.56089496]
[1748139551216,30.56089496,170.72,170.7,35.12]
[1748139551425,30.56089496,170.71,170.62,6.6536]
[1748139551635,30.56089496,170.67,170.63,35.12]
[1748139551931,30.56089496,170.66,170.63,35.12]
[1748139552147,26.0,170.68,170.63,35.12]
[1748139552328,30.56089496,170.64,170.6,1.6147]
[1748139552528,30.56089496,170.65,170.61,35.12]
[1748139552747,26.14216157,170.67,170.61,65.68089496]
[1748139552956,56.56089496,170.67,170.62,30.56089496]
[1748139553442,30.56089496,170.66,170.61,65.68089496]
[1748139554060,26.0,170.67,170.61,65.68089496]
[1748139554248,30.56089496,170.66,170.61,65.68089496]
[1748139555927,30.56089496,170.66,170.61,35.12]
[1748139556132,56.56089496,170.64,170.62,35.1]
[1748139556443,30.56089496,170.64,170.62,35.1]
[1748139557029,30.56089496,170.63,170.62,35.1]
[1748139557228,56.56089496,170.64,170.62,35.1]
[1748139557562,56.56089496,170.64,170.63,296.48]
[1748139557872,56.56089496,170.64,170.63,77.46]
[1748139558233,30.56089496,170.64,170.63,77.46]
[1748139558450,30.70305653,170.64,170.63,35.1]
[1748139558862,30.70305653,170.64,170.54,1.6147]
[1748139558863,26.0,170.6,170.54,1.6147]
[1748139559047,30.56089496,170.57,170.55,35.1]
[1748139559246,26.0,170.6,170.54,1.6147]
[1748139559585,30.56089496,170.56,170.55,35.1]
[1748139559780,56.56089496,170.56,170.55,35.1]
[1748139561661,145.7,170.66,170.55,35.1]
[1748139561988,26.0,170.56,170.55,35.1]
[1748139562174,30.56089496,170.58,170.55,35.1]
[1748139562381,30.56089496,170.59,170.55,35.1]
[1748139563179,56.56089496,170.59,170.55,65.66089496]
[1748139563364,56.56089496,170.59,170.55,35.1]
[1748139563563,26.0,170.59,170.55,35.1]
[1748139563763,30.56089496,170.58,170.55,35.1]
[1748139564081,30.56089496,170.56,170.55,35.1]
[1748139564458,26.0,170.59,170.55,35.1]
[1748139564459,30.56089496,170.57,170.55,35.1]
[1748139565588,30.56089496,170.58,170.55,35.1]
[1748139565762,20.12113018,170.58,170.55,35.1]
[1748139565961,20.12113018,170.57,170.55,35.1]
[1748139566192,46.12113018,170.56,170.48,1.6147]
[1748139566496,20.12113018,170.51,170.48,1.6147]
[1748139566667,20.12113018,170.51,170.49,35.1]
[1748139566985,20.12113018,170.5,170.43,21.63353018]
[1748139567193,20.12113018,170.47,170.44,35.1]
[1748139567391,20.12113018,170.47,170.45,35.1]
[1748139567578,26.14216157,170.5,170.46,261.26]
[1748139567579,0.14216157,170.5,170.46,261.26]
[1748139567780,20.12113018,170.47,170.42,10.17163018]
[1748139568900,20.12113018,170.48,170.43,55.22113018]
[1748139569094,26.0,170.51,170.44,20.12113018]
[1748139569392,26.0,170.53,170.49,20.12113018]
[1748139569562,20.12113018,170.56,170.51,20.12113018]
[1748139569762,26.0,170.55,170.51,30.58135708]
[1748139569990,26.0,170.58,170.51,30.58135708]
[1748139570192,30.58135708,170.57,170.52,30.58135708]
[1748139570774,30.58135708,170.57,170.52,37.24785708]
[1748139571175,30.58135708,170.57,170.53,30.58135708]
[1748139572005,30.58135708,170.62,170.56,30.58135708]
[1748139572292,30.58135708,170.6,170.55,30.58135708]
[1748139572498,30.58135708,170.6,170.56,35.1]
[1748139572908,26.0,170.61,170.56,35.1]
[1748139573208,30.58135708,170.62,170.57,30.58135708]
[1748139573572,30.58135708,170.61,170.56,65.68135708]
[1748139573872,30.58135708,170.61,170.56,35.1]
[1748139574097,30.58135708,170.61,170.56,65.68135708]
[1748139575992,30.58135708,170.6,170.56,35.1]
[1748139577090,26.0,170.62,170.56,65.68135708]
[1748139577392,56.58135708,170.62,170.56,65.68135708]
[1748139577595,56.58135708,170.62,170.57,291.86135708]
[1748139578074,56.58135708,170.59,170.58,35.1]
[1748139578270,56.72351865,170.59,170.58,35.1]
[1748139578793,0.14216157,170.58,170.52,6.6665]
[1748139578987,30.58135708,170.56,170.53,35.1]
[1748139579187,30.58135708,170.54,170.48,36.86725708]
[1748139579369,30.58135708,170.53,170.49,35.1]
[1748139580080,26.0,170.5,170.46,1.6414]
[1748139580286,26.0,170.5,170.47,35.1]
[1748139580692,30.58135708,170.52,170.47,35.1]
[1748139580880,30.58135708,170.52,170.47,65.68135708]
[1748139581284,30.58135708,170.51,170.47,35.1]
[1748139581589,30.58135708,170.52,170.47,35.1]
[1748139583078,30.58135708,170.52,170.47,65.68135708]
[1748139583401,26.0,170.52,170.47,65.68135708]
[1748139583604,26.0,170.52,170.48,30.58135708]
[1748139583778,26.0,170.52,170.49,35.1]
[1748139584313,18.64964886,170.58,170.49,65.68135708]
[1748139584600,30.58135708,170.55,170.5,30.58135708]
[1748139584800,30.58135708,170.56,170.5,30.58135708]
[1748139584979,30.58135708,170.57,170.51,30.58135708]
[1748139585180,0.14216157,170.57,170.46,1.6414]
[1748139585382,30.58135708,170.48,170.44,6.4615]
[1748139585606,26.0,170.51,170.44,6.4615]
[1748139585607,30.58135708,170.47,170.45,35.1]
[1748139585985,30.58135708,170.48,170.45,35.1]
[1748139586185,56.58135708,170.49,170.45,35.1]
[1748139587510,30.58135708,170.48,170.46,261.3]
[1748139587809,26.0,170.49,170.46,261.3]
[1748139587810,30.58135708,170.47,170.46,261.3]
[1748139587991,56.72351865,170.47,170.46,296.4]
[1748139588314,56.72351865,170.47,170.46,77.34]
[1748139588906,56.72351865,170.47,170.46,77.36]
[1748139590118,49.37316751,170.47,170.46,35.12]
[1748139590715,135.7,170.51,170.46,35.12]
[1748139590926,30.58135708,170.47,170.46,35.12]
[1748139591218,30.72351865,170.47,170.46,35.12]
[1748139591515,30.72351865,170.47,170.36,7.5274]
[1748139591716,30.58135708,170.42,170.37,35.12]
[1748139592025,30.58135708,170.42,170.36,38.10875708]
[1748139592198,30.58135708,170.42,170.37,65.70135708]
[1748139592399,30.58135708,170.41,170.37,35.12]
[1748139593418,30.58135708,170.41,170.36,38.10875708]
[1748139593722,20.16122311,170.41,170.38,35.12]
[1748139595092,20.16122311,170.41,170.36,27.68862311]
[1748139595423,20.16122311,170.4,170.37,35.12]
[1748139595722,26.0,170.42,170.38,35.12]
[1748139596103,26.0,170.42,170.38,55.28122311]
[1748139596505,1.5124,170.52,170.41,20.16122311]
[1748139596729,20.16122311,170.48,170.43,20.16122311]
[1748139596899,46.16122311,170.48,170.43,20.16122311]
[1748139597100,20.16122311,170.46,170.42,35.12]
[1748139597418,18.79181043,170.5,170.43,35.12]
[1748139597624,20.16122311,170.47,170.43,295.74]
[1748139597806,20.16122311,170.46,170.43,295.74]
[1748139598202,46.16122311,170.44,170.36,7.955]
[1748139598408,20.16122311,170.4,170.37,35.12]
[1748139599018,20.16122311,170.39,170.37,35.12]
[1748139599219,20.16122311,170.4,170.38,35.12]
[1748139599533,20.16122311,170.41,170.38,35.12]
[1748139600029,4.16123178,170.5,170.39,20.16122311]
[1748139600220,20.16122311,170.45,170.38,35.12]
[1748139600535,20.16122311,170.44,170.39,20.16122311]
[1748139600913,26.0,170.47,170.42,20.16122311]
[1748139601116,46.16122311,170.47,170.43,35.12]
[1748139601313,20.16122311,170.48,170.43,55.28122311]
[1748139601515,26.0,170.46,170.43,55.28122311]
[1748139602124,20.16122311,170.48,170.43,55.28122311]
[1748139602429,20.16122311,170.49,170.44,20.16122311]
[1748139602630,20.16122311,170.5,170.45,20.16122311]
[1748139602932,46.16122311,170.5,170.45,20.16122311]
[1748139603135,20.16122311,170.52,170.47,20.16122311]
[1748139603434,4.16123178,170.56,170.51,20.16122311]
[1748139603638,4.16123178,170.56,170.52,55.28122311]
[1748139603815,20.16122311,170.58,170.53,20.16122311]
[1748139604009,26.0,170.59,170.52,35.12]
[1748139604214,20.16122311,170.56,170.52,35.12]
[1748139604434,46.16122311,170.57,170.52,55.28122311]
[1748139604635,20.16122311,170.58,170.53,20.16122311]
[1748139604828,20.16122311,170.59,170.54,20.16122311]
[1748139605136,46.16122311,170.6,170.55,20.16122311]
[1748139605322,20.16122311,170.59,170.56,35.12]
[1748139606020,4.16123178,170.66,170.58,20.16122311]
[1748139606345,4.16123178,170.66,170.59,20.16122311]
[1748139606346,0.14216157,170.65,170.59,20.16122311]
[1748139606514,0.14216157,170.65,170.6,35.12]
[1748139606515,26.0,170.61,170.6,35.12]
[1748139607012,20.16122311,170.62,170.6,35.12]
[1748139607209,0.14216157,170.6,170.52,6.5231]
[1748139607530,20.16122309,170.56,170.53,295.72]
[1748139607739,20.16122311,170.57,170.53,295.72]
[1748139607944,20.16122311,170.56,170.53,295.72]
[1748139608127,20.16122311,170.56,170.53,76.58]
[1748139608538,26.0,170.58,170.53,76.58]
[1748139608847,20.16122311,170.57,170.53,35.12]
[1748139610121,20.16122311,170.56,170.53,35.12]
[1748139610338,20.16122311,170.54,170.48,6.5231]
[1748139610646,26.0,170.56,170.51,20.16122311]
[1748139610647,46.16122311,170.56,170.51,20.16122311]
[1748139611424,26.0,170.56,170.52,20.16122311]
[1748139611627,20.16122311,170.57,170.53,55.28122311]
[1748139612356,26.0,170.58,170.56,20.16122311]
[1748139612531,26.0,170.58,170.57,35.12]
[1748139613836,46.16122311,170.6,170.57,35.12]
[1748139614047,26.0,170.6,170.57,35.12]
[1748139614251,46.16122311,170.6,170.57,35.12]
[1748139614446,26.0,170.6,170.57,35.12]
[1748139614652,20.16122311,170.64,170.59,20.16122311]
[1748139614950,26.0,170.61,170.59,20.16122311]
[1748139615248,20.16122311,170.64,170.59,20.16122311]
[1748139615437,26.0,170.63,170.59,20.16122311]
[1748139615640,20.16122311,170.63,170.58,6.2734]
[1748139615844,20.16122311,170.62,170.58,26.43462311]
[1748139616030,46.16122311,170.63,170.58,26.43462311]
[1748139616548,20.16122311,170.64,170.59,20.16122311]
[1748139617038,26.0,170.63,170.59,20.16122311]
[1748139617338,20.16122311,170.65,170.6,20.16122311]
[1748139617537,20.16122311,170.64,170.61,295.6]
[1748139617846,20.16122311,170.62,170.61,41.44]
[1748139618038,20.16122311,170.62,170.61,76.54]
[1748139618239,20.16122311,170.62,170.61,35.1]
[1748139618437,2.88086702,170.7,170.61,35.1]
[1748139618629,46.16122311,170.66,170.61,55.26122311]
[1748139619555,20.16122311,170.65,170.61,35.1]
[1748139619756,20.16122311,170.64,170.61,35.1]
[1748139620053,20.16122311,170.62,170.57,1.6489]
[1748139620255,20.16122311,170.58,170.54,6.2734]
[1748139620456,20.16122311,170.57,170.55,35.1]
[1748139620957,46.16122311,170.58,170.55,35.1]
[1748139621752,26.0,170.58,170.55,35.1]
[1748139623177,26.0,170.6,170.56,20.16122311]
[1748139623469,46.16122311,170.6,170.55,55.26122311]
[1748139623653,20.16122311,170.59,170.55,35.1]
[1748139624263,26.0,170.6,170.56,20.16122311]
[1748139624972,26.0,170.6,170.55,55.26122311]
[1748139625137,46.16122311,170.6,170.55,55.26122311]
[1748139625337,20.16122311,170.59,170.55,35.1]
[1748139625642,20.16122311,170.58,170.55,35.1]
[1748139626165,20.16122311,170.59,170.55,35.1]
[1748139626946,20.16122311,170.58,170.56,35.1]
[1748139627453,20.16122311,170.58,170.57,219.02]
[1748139627651,26.0,170.6,170.57,260.5]
[1748139627842,46.16122311,170.6,170.57,41.48]
[1748139628248,46.16122311,170.6,170.56,35.1]
[1748139628249,26.0,170.6,170.56,55.26122311]
[1748139629661,135.7,170.61,170.57,20.16122311]
[1748139629960,20.16122311,170.62,170.57,20.16122311]
[1748139630543,26.0,170.62,170.59,20.16122311]
[1748139630744,26.0,170.62,170.6,35.1]
[1748139631458,135.7,170.65,170.6,55.26122311]
[1748139631665,102.0425313,204.08,170.61,20.16122311]
[1748139631666,20.16122311,170.66,170.61,20.16122311]
[1748139632165,26.0,170.65,170.61,20.16122311]
[1748139632364,20.16122311,170.67,170.62,20.16122311]
[1748139632538,20.16122311,170.67,170.63,35.1]
[1748139632738,26.0,170.66,170.63,35.1]
[1748139634261,46.16122311,170.66,170.63,35.1]
[1748139634455,20.16122311,170.64,170.57,18.64964886]
[1748139634675,20.16122311,170.63,170.58,55.26122311]
[1748139635061,20.16122311,170.62,170.58,35.1]
[1748139635272,20.16122311,170.61,170.58,35.1]
[1748139635468,20.16122311,170.63,170.58,35.1]
[1748139635659,20.16122311,170.64,170.59,20.16122311]
[1748139636276,26.0,170.66,170.58,35.1]
[1748139636277,20.16122311,170.65,170.6,20.16122311]
[1748139636485,46.16122311,170.66,170.61,20.16122311]
[1748139636657,20.16122311,170.65,170.62,35.1]
[1748139637580,20.16122311,170.65,170.63,260.46]
[1748139639075,26.0,170.66,170.63,260.46]
[1748139639650,135.7,170.69,170.63,260.46]
[1748139639854,20.16122311,170.69,170.64,20.16122311]
[1748139640155,20.16122311,170.68,170.65,35.1]
[1748139640351,20.16122311,170.67,170.65,35.1]
[1748139640574,20.16122311,170.68,170.65,35.1]
[1748139641676,135.7,170.79,170.65,56.88262311]
[1748139641873,20.16122311,170.73,170.68,20.16122311]
[1748139642071,20.16122311,170.73,170.69,35.1]
[1748139642286,20.16122311,170.74,170.69,55.26122311]
[1748139643380,20.16122311,170.73,170.69,35.1]
[1748139643569,20.16122311,170.72,170.69,35.1]
[1748139643774,20.16122311,170.7,170.65,1.6214]
[1748139643979,20.16122311,170.67,170.66,35.08]
[1748139646377,20.16122311,170.67,170.61,1.6214]
[1748139646695,26.0,170.69,170.61,1.6214]
[1748139646886,26.0,170.69,170.62,35.08]
[1748139647194,135.84216157,170.68,170.62,35.08]
[1748139647398,20.16122311,170.63,170.62,35.08]
[1748139647585,135.84216157,170.68,170.62,295.46]
[1748139647780,20.16122311,170.63,170.62,295.46]
[1748139648582,135.84216157,170.68,170.62,295.46]
[1748139648798,20.16122311,170.64,170.63,35.08]
[1748139648992,135.7,170.68,170.63,35.08]
[1748139649373,20.16122311,170.65,170.63,35.08]
[1748139649684,135.7,170.68,170.63,35.08]
[1748139650182,20.16122311,170.65,170.63,35.08]
[1748139651100,20.16122311,170.66,170.63,35.08]
[1748139652292,135.7,170.68,170.63,35.08]
[1748139652482,20.16122311,170.66,170.63,35.08]
[1748139652978,135.7,170.68,170.63,35.08]
[1748139653182,20.16122311,170.66,170.63,35.08]
[1748139653413,20.16122311,170.65,170.63,35.08]
[1748139653592,135.7,170.68,170.63,35.08]
[1748139653787,20.16122311,170.66,170.63,35.08]
[1748139654286,135.7,170.68,170.63,35.08]
[1748139654500,20.16122311,170.66,170.63,35.08]
[1748139654890,135.7,170.68,170.63,35.08]
[1748139655205,20.16122311,170.66,170.63,35.08]
[1748139655389,20.16122311,170.67,170.63,35.08]
[1748139655590,20.16122311,170.66,170.63,35.08]
[1748139656113,135.7,170.68,170.63,35.08]
[1748139656114,20.16122311,170.67,170.63,35.08]
[1748139656599,135.7,170.68,170.63,35.08]
[1748139656803,20.16122311,170.65,170.63,35.08]
[1748139657189,20.16122311,170.66,170.63,35.08]
[1748139657392,20.16122311,170.64,170.59,6.1857]
[1748139657710,0.14216157,170.67,170.6,259.52]
[1748139657911,135.7,170.68,170.6,75.66]
[1748139658311,135.7,170.68,170.6,35.08]
[1748139658991,20.16122311,170.64,170.6,55.24122311]
[1748139659205,135.7,170.68,170.6,55.24122311]
[1748139659615,20.16122311,170.67,170.62,20.16122311]
[1748139659817,20.16122311,170.67,170.63,35.08]
[1748139660416,20.16122311,170.65,170.63,35.08]
[1748139660631,20.16122311,170.64,170.58,1.5017]
[1748139660787,20.16122311,170.61,170.59,35.08]
[1748139661121,20.16122311,170.6,170.55,6.1426]
[1748139661413,20.16122311,170.58,170.56,35.08]
[1748139661622,20.16122311,170.57,170.51,6.1426]
[1748139661804,20.16122311,170.54,170.52,35.08]
[1748139662392,20.16122311,170.6,170.52,35.08]
[1748139662393,26.0,170.6,170.52,35.08]
[1748139662591,20.16122311,170.59,170.54,20.16122311]
[1748139662895,26.0,170.6,170.55,20.16122311]
[1748139662896,46.16122311,170.6,170.55,20.16122311]
[1748139663094,46.16122311,170.6,170.56,35.08]
[1748139663703,4.16123178,170.64,170.56,55.24122311]
[1748139663704,46.16122311,170.61,170.56,55.24122311]
[1748139664519,20.16122311,170.62,170.57,20.16122311]
[1748139665298,26.0,170.65,170.57,20.16122311]
[1748139665501,20.16122311,170.63,170.58,20.16122311]
[1748139665709,20.16122311,170.62,170.57,20.16122311]
[1748139665919,26.0,170.65,170.51,6.1426]
[1748139665920,20.16122311,170.58,170.51,6.1426]
[1748139666112,20.16122311,170.56,170.52,35.1]
[1748139666620,20.16122311,170.56,170.51,26.30382311]
[1748139666917,20.16122311,170.55,170.53,35.1]
[1748139667225,20.16122311,170.55,170.51,6.1426]
[1748139667410,20.16122311,170.55,170.52,35.1]
[1748139667618,20.16122311,170.55,170.53,40.58]
[1748139668407,20.16122311,170.57,170.53,40.58]
[1748139668721,26.0,170.58,170.53,60.74122311]
[1748139669028,20.16122311,170.57,170.53,40.58]
[1748139669595,20.16122311,170.58,170.53,60.74122311]
[1748139669833,46.16122311,170.6,170.51,6.1426]
[1748139670001,26.0,170.6,170.52,35.1]
[1748139670202,20.16122311,170.56,170.52,35.1]
[1748139670402,26.0,170.6,170.52,35.1]
[1748139670714,20.16122311,170.56,170.52,35.1]
[1748139670896,20.16122311,170.54,170.52,35.1]
[1748139671101,181.86122311,170.6,170.52,35.1]
[1748139671301,20.16122311,170.56,170.52,35.1]
[1748139672022,161.7,170.6,170.52,55.26122311]
[1748139672222,20.16122311,170.58,170.53,20.16122311]
[1748139673423,20.16122311,170.56,170.52,35.1]
[1748139673614,26.0,170.57,170.53,35.1]
[1748139673927,26.0,170.56,170.53,35.1]
[1748139674232,20.16122311,170.54,170.53,35.1]
[1748139674451,20.16122311,170.54,170.47,6.4079]
[1748139674640,20.16122311,170.49,170.48,35.1]
[1748139674817,20.16122311,170.49,170.43,6.4079]
[1748139675017,20.16122311,170.45,170.44,35.1]
[1748139675447,20.16122311,170.46,170.44,35.1]
[1748139675614,20.16122311,170.45,170.44,35.1]
[1748139676341,20.16122311,170.46,170.44,35.1]
[1748139676848,20.16122311,170.45,170.36,1.6249]
[1748139677048,20.16122311,170.4,170.37,35.1]
[1748139677222,20.16122311,170.39,170.37,35.1]
[1748139677619,20.16122311,170.39,170.38,294.74]
[1748139678247,20.16122311,170.39,170.38,259.64]
[1748139678444,20.16122311,170.39,170.38,75.7]
[1748139678650,26.0,170.44,170.38,35.1]
[1748139678952,46.16122311,170.44,170.39,20.16122311]
[1748139679516,26.0,170.44,170.39,20.16122311]
[1748139679733,20.16122311,170.44,170.39,20.16122311]
[1748139679935,20.16122311,170.45,170.4,20.16122311]
[1748139680226,46.16122311,170.46,170.41,20.16122311]
[1748139680443,46.16122311,170.46,170.42,35.12]
[1748139680827,20.16122311,170.46,170.42,35.12]
[1748139682235,20.16122311,170.46,170.42,55.28122311]
[1748139682766,20.16122311,170.46,170.42,35.12]
[1748139683831,135.7,170.49,170.42,35.12]
[1748139684037,20.16122311,170.47,170.42,55.28122311]
[1748139684967,46.16122311,170.49,170.44,20.16122311]
[1748139685256,20.16122311,170.49,170.44,20.16122311]
[1748139685472,161.7,170.52,170.45,20.16122311]
[1748139685672,20.16122311,170.5,170.46,35.12]
[1748139685963,20.16122311,170.52,170.47,20.16122311]
[1748139686262,20.16122311,170.51,170.46,55.28122311]
[1748139687489,20.16122311,170.51,170.47,259.76]
[1748139687695,26.0,170.54,170.47,279.92122311]
[1748139687877,20.16122311,170.54,170.47,259.76]
[1748139688067,0.14216157,170.61,170.52,20.16122311]
[1748139688390,0.14216157,170.61,170.56,20.16122311]
[1748139688391,20.16122311,170.61,170.56,20.16122311]
[1748139688580,20.16122311,170.62,170.57,55.28122311]
[1748139688781,4.16123178,170.65,170.57,55.28122311]
[1748139688782,4.16123178,170.65,170.59,20.16122311]
[1748139688967,24.32245489,170.65,170.61,20.16122311]
[1748139689170,4.16123178,170.65,170.62,35.12]
[1748139689364,4.16123178,170.65,170.62,55.28122311]
[1748139689893,20.16122311,170.67,170.62,55.28122311]
[1748139690080,20.16122311,170.64,170.62,35.12]
[1748139691005,20.16122311,170.65,170.62,35.12]
[1748139691301,20.16122311,170.64,170.6,28.13412311]
[1748139691597,20.16122311,170.65,170.63,35.12]
[1748139691969,20.16122311,170.68,170.63,55.28122311]
[1748139692177,20.16122311,170.69,170.64,20.16122311]
[1748139692378,20.16122311,170.68,170.63,55.28122311]
[1748139692796,20.16122311,170.66,170.63,35.12]
[1748139693880,20.16122311,170.67,170.63,35.12]
[1748139695309,20.16122311,170.65,170.63,35.12]
[1748139696186,20.16122311,170.64,170.6,28.13412311]
[1748139696497,20.16122311,170.65,170.61,35.1]
[1748139697581,20.16122311,170.65,170.62,259.68]
[1748139698176,26.0,170.69,170.62,40.68]
[1748139698377,20.16122311,170.68,170.62,40.68]
[1748139698593,20.16122311,170.68,170.63,20.16122311]
[1748139699896,20.16122311,170.69,170.64,20.16122311]
[1748139700103,135.7,170.73,170.65,55.26122311]
[1748139700303,20.16122311,170.73,170.68,20.16122311]
[1748139700676,135.7,170.78,170.7,20.16122311]
[1748139700874,20.16122311,170.75,170.71,35.1]
[1748139701092,20.16122311,170.73,170.71,35.1]
[1748139701302,20.16122311,170.72,170.71,35.1]
[1748139701885,20.16122311,170.73,170.71,35.1]